Cogmind - Beta 9.3 @@@ ROGUE MODE // 2019.12.31 @ 12:21:27 // Winter2019/RPGLIKE Player: mrbill82 Result: Destroyed self with Light Ion Engine chain reaction Performance ------------- Evolutions (1) 500 Regions Visited (2) 400 Robots Destroyed (31) 155 Value Destroyed (865) 865 Prototype IDs (0) 0 Alien Tech Used (0) 0 Bonus (0) 0 TOTAL SCORE: 1920 Bonus ------- None Cogmind --------- Core Integrity 0/650 Matter 276/300 Energy 115/265 System Corruption 1% Temperature Cool (12) Movement Walking (120) Location -9/Materials Parts ------- > --- POWER (1) -------- Improved Ion Engine > --- PROPULSION (3) --- Aluminum Leg Aluminum Leg Aluminum Leg > --- UTILITY (2) ------ Improved Terrain Scan Processor Improved Targeting Computer > --- WEAPON (2) ------- EM Shotgun EMP Blaster > --- INVENTORY (2) ---- EMP Blaster Mining Claw Peak State ------------ > --- POWER ------------ Improved Ion Engine > --- PROPULSION ------- Aluminum Leg Aluminum Leg Aluminum Leg > --- UTILITY ---------- Improved Terrain Scan Processor Improved Targeting Computer > --- WEAPON ----------- EM Shotgun EMP Blaster > --- INVENTORY -------- EMP Blaster Mining Claw [Rating: 14] Favorites ----------- Power Ion Engine Engine Ion Engine Propulsion Aluminum Leg Leg Aluminum Leg Utility Structural Scanner Device Structural Scanner Processor Improved Terrain Scan Processor Weapon EMP Blaster Energy Gun EM Shotgun Ballistic Gun Light Assault Rifle Launcher EMP Blaster Slashing Weapon Mining Claw Special Melee Weapon Datajack Build | -11 -10 -9 ------- Run | Scr Mat Mat Slots Evolved 4 | 3 . 1 Power . | . . . Propulsion 2 | 1 . 1 Utility 1 | 1 . . Weapon 1 | 1 . . Parts Attached 25 | 5 14 6 Power 4 | 1 2 1 Engine 4 | 1 2 1 Core . | . . . Reactor . | . . . Propulsion 5 | 2 2 1 Treads . | . . . Leg 5 | 2 2 1 Wheel . | . . . Hover . | . . . Flight . | . . . Utility 6 | . 3 3 Device 4 | . 3 1 Storage . | . . . Processor 2 | . . 2 Hackware . | . . . Protection . | . . . Artifact . | . . . Weapon 10 | 2 7 1 Energy Gun 1 | . . 1 Energy Cannon . | . . . Ballistic Gun 4 | 2 2 . Ballistic Cannon . | . . . Launcher 3 | . 3 . Special Weapon . | . . . Impact Weapon . | . . . Slashing Weapon 1 | . 1 . Piercing Weapon . | . . . Special Melee Weapon 1 | . 1 . Unidentified Prototypes . | . . . Parts Lost . | . . . Power . | . . . Propulsion . | . . . Utility . | . . . Weapon . | . . . Highest Loss Streak . | . . . Average Slot Usage (%) 86 | . 84 91 Engine 13 | . 14 11 Leg 28 | . 28 30 Device 12 | . 13 8 Processor 3 | . . 15 Energy Gun 2 | . . 11 Ballistic Gun 3 | . 5 . Launcher 13 | . 13 12 Slashing Weapon 1 | . 1 . Special Melee Weapon 5 | . 7 . Naked Turns . | . . . Heaviest Build 14 | 8 13 14 Greatest Support 40 | 25 25 40 Greatest Overweight (x) . | . . . Average Overweight (x) . | . . . Largest Inventory Capacity 2 | 2 2 2 Average Capacity 1 | 1 2 2 Most Carried 2 | 2 2 2 Average Carried 1 | . 1 1 Final Capacity 2 | 2 2 2 Final Carried 2 | 2 1 2 Class Distribution -------------------- 60% | Mutant 39% | Scavenger-Mutant Dominant Class ---------------- Mutant | -10/Materials Mutant | -9/Materials Resources | -11 -10 -9 ----------- Run | Scr Mat Mat Matter Collected 682 | 250 328 104 Remotely . | . . . Salvage Created 1091 | . 657 434 Parts 73 | . 45 28 Haulers Intercepted . | . . . Recyclers Shooed 1 | . 1 . Parts Field Recycled . | . . . Retrieved Matter . | . . . Parts Self-Destructed . | . . . Prevented . | . . . Kills | -11 -10 -9 ------- Run | Scr Mat Mat Combat Hostiles Destroyed 24 | . 15 9 Guns 7 | . 3 4 AOE 15 | . 11 4 Classes Destroyed 7 | . 5 2 Worker 1 | . 1 . Builder 4 | . 3 1 Tunneler 1 | . . 1 Watcher 1 | . 1 . Swarmer 6 | . 3 3 Grunt 15 | . 12 3 Sentry 3 | . . 3 Best Kill Streak 6 | . 5 6 Combat Bots Only 5 | . 3 5 Max Kills in Single Turn 3 | . 3 2 Gunslinging . | . . . Exploded 2 | . 1 2 Melee . | . . . Uniques/NPCs Destroyed . | . . . Combat | -11 -10 -9 -------- Run | Scr Mat Mat Damage Taken 1151 | . 822 329 Core 938 | . 680 258 Absorbed by Shields . | . . . Redirected to Core 684 | . 461 223 Core Remaining (%) 68 | 100 37 . Volleys Fired 64 | . 47 17 Largest 2 | . 2 2 Hottest 78 | . 40 78 Shots Fired 99 | . 67 32 Gun 55 | . 40 15 Cannon . | . . . Launcher 44 | . 27 17 Special . | . . . Kinetic 40 | . 40 . Thermal . | . . . Explosive . | . . . Electromagnetic 59 | . 27 32 Robot Hit Streak 15 | . 8 15 Robot Miss Streak 3 | . 3 2 Penetration Max . | . . . Secondary Targets . | . . . Shots Hit Robots 82 | . 54 28 Core Hits 49 | . 28 21 Critical Hits 2 | . 2 . Critical Kills 1 | . 1 . Critical Parts Destroyed 1 | . 1 . Melee Attacks 13 | . 13 . Impact . | . . . Slashing . | . . . Piercing . | . . . Sneak Attacks 8 | . 8 . Combat Hostiles . | . . . Follow-up Attacks . | . . . Damage Inflicted 1952 | . 1259 693 Guns 450 | . 283 167 Cannons . | . . . Explosions 1502 | . 976 526 Melee . | . . . Ramming . | . . . Kinetic 283 | . 283 . Thermal 76 | . 76 . Explosive . | . . . Electromagnetic 1593 | . 900 693 Impact . | . . . Slashing . | . . . Piercing . | . . . Highest Corruption 1 | . 1 1 Average Corruption 1 | . 1 1 Corruption Purged . | . . . Effects 1 | . 1 . Data Loss (minor) 1 | . 1 . Overload Shots . | . . . Overflow Damage 10 | . 10 . Projectiles . | . . . Explosions 10 | . 10 . Melee . | . . . Knockbacks . | . . . Impact . | . . . Kinetic . | . . . Secondary . | . . . Self-Inflicted Damage 297 | . 181 116 Shots 22 | . 12 10 Rammed . | . . . Targets Rammed . | . . . Kicked . | . . . Crushed . | . . . Highest Temperature 117 | . 12 117 Average Temperature 27 | . 6 40 Received Heat Transfer 423 | . 315 108 Siege Activations . | . . . Robots Corrupted 2 | . 1 1 Combat Hostiles 2 | . 1 1 Parts Fried 5 | . 2 3 Impact Corruptions . | . . . Robots Melted . | . . . Combat Hostiles . | . . . Parts Melted . | . . . Heat Transferred 150 | . 150 . Parts Sabotaged . | . . . Parts Stolen . | . . . Parts Stripped . | . . . Power Chain Reactions 6 | . 4 2 Missiles Intercepted . | . . . Alert | -11 -10 -9 ------- Run | Scr Mat Mat Peak Influence 329 | . 329 312 Average Influence 168 | . 177 167 Maximum Alert Level 1 | . 1 1 Low Security (%) 64 | 100 60 69 Level 1 35 | . 39 30 Level 2 . | . . . Level 3 . | . . . Level 4 . | . . . Level 5 . | . . . High Security . | . . . Max Security . | . . . Squads Dispatched 8 | . 6 2 Investigation 2 | . 2 . Extermination . | . . . Reinforcement 6 | . 4 2 Assault . | . . . Garrison . | . . . Intercept . | . . . Construction Impeded 1 | . . 1 Haulers Reinforced . | . . . Stealth | -11 -10 -9 --------- Run | Scr Mat Mat Distress Signals 5 | . 4 1 Communications Jammed . | . . . Distress Signals . | . . . Times Spotted 40 | . 28 12 Peak Tracking Total 6 | . 6 3 Tactical Retreats 4 | . 2 2 Traps | -11 -10 -9 ------- Run | Scr Mat Mat Traps Triggered . | . . . Indirectly . | . . . Trap Hack Attempts . | . . . Triggered . | . . . Disarmed 2 | . 2 . Reprogrammed . | . . . Reused . | . . . Traps Extracted . | . . . Installed . | . . . Triggered . | . . . Machines | -11 -10 -9 ---------- Run | Scr Mat Mat Machines Disabled 9 | . 3 6 Max in Single Turn 2 | . 1 2 Machines Sabotaged . | . . . Garrisons Compromised . | . . . Overloaded Fab Kills . | . . . Fab Network Shutdowns . | . . . Hacking | -11 -10 -9 --------- Run | Scr Mat Mat Machines Accessed 9 | . 5 4 Terminals 7 | . 3 4 Fabricators . | . . . Repair Stations . | . . . Recycling Units 2 | . 2 . Scanalyzers . | . . . Garrison Access . | . . . Total Hacks 25 | . 17 8 Successful 15 | . 13 2 Failed 10 | . 4 6 Catastrophic 1 | . . 1 Database Lockouts . | . . . Manual . | . . . Terminals 21 | . 13 8 Fabricators . | . . . Repair Stations . | . . . Recycling Units 4 | . 4 . Scanalyzers . | . . . Garrison Access . | . . . Terminal Hacks 13 | . 11 2 Record 6 | . 4 2 Emergency Access Points 1 | . 1 . Alert Level 1 | . 1 . Locate Traps 2 | . 2 . Disarm Traps 1 | . 1 . Patrol Status 1 | . 1 . Zone Layout 1 | . 1 . Fabricator Hacks . | . . . Repair Station Hacks . | . . . Recycling Unit Hacks 2 | . 2 . Report Inventory 2 | . 2 . Scanalyzer . | . . . Garrison Access Hacks . | . . . Unauthorized Hacks . | . . . Terminals . | . . . Fabricators . | . . . Repair Stations . | . . . Recycling Units . | . . . Scanalyzers . | . . . Garrison Access . | . . . Data Cores Recovered . | . . . Used . | . . . Hacking Detections 8 | . 4 4 Full Trace Events 1 | . 1 . Feedback Events . | . . . Feedback Blocked . | . . . Robot Schematics Acquired . | . . . Robots Built . | . . . Matter . | . . . Time . | . . . Total Robot Build Rating . | . . . Part Schematics Acquired . | . . . Parts Built . | . . . Matter . | . . . Time . | . . . Total Part Build Rating . | . . . Parts Repaired . | . . . Time . | . . . Parts Recycled . | . . . Recycled Matter . | . . . Retrieved Matter . | . . . Retrieved Components . | . . . Parts Scanalyzed . | . . . Part Schematics Acquired . | . . . Parts Damaged . | . . . Bothacking | -11 -10 -9 ------------ Run | Scr Mat Mat Used RIF Installer . | . . . Robots Hacked 6 | . 6 . Non-combat 6 | . 6 . Combat . | . . . Robot Hacks Applied 8 | . 8 . parse_system 1 | . 1 . no_distress 6 | . 6 . check_alert 1 | . 1 . Relay Couplers Released . | . . . Robots Rewired . | . . . Allies Hacked . | . . . Hacks Repelled . | . . . Allies | -11 -10 -9 -------- Run | Scr Mat Mat Total Allies . | . . . Largest Group . | . . . Highest-Rated Group . | . . . Highest-Rated Ally . | . . . Total Orders . | . . . Ally Attacks . | . . . Total Damage . | . . . Kills . | . . . Allies Corrupted . | . . . Allies Melted . | . . . Intel | -11 -10 -9 ------- Run | Scr Mat Mat Robot Analysis Total . | . . . Derelict Logs Recovered . | . . . Drone Launches . | . . . Drone Recoveries . | . . . Exploration | -11 -10 -9 ------------- Run | Scr Mat Mat Turns Passed 1831 | 71 1298 462 Spaces Moved 1307 | 59 912 336 Core 12 | 12 . . Treads . | . . . Legs 1295 | 47 912 336 Wheels . | . . . Hover . | . . . Flight . | . . . Fastest Speed 50 | 50 120 120 Average Speed 119 | 105 120 120 Slowest Speed 120 | 120 120 120 Overloaded Moves . | . . . Propulsion Burnouts . | . . . Robots Hopped . | . . . Cave-ins Triggered . | . . . Exploration Rate (%) 37 | 3 89 21 Regions Visited 2 Branch Regions . Pre-discovered Areas . | . . . Known Exits Taken . | . . . Unknown Exits Taken 2 | 1 1 . Scrap Searched . | . . . Spaces Dug 2 | . 2 . Terrain Destroyed 9 | . 9 . Melee . | . . . Projectile . | . . . AOE 9 | . 9 . Actions | -11 -10 -9 --------- Run | Scr Mat Mat Total 1472 | 65 1042 365 Wait 30 | . 29 1 Move 1305 | 58 911 336 Hop . | . . . Pick Up 4 | 2 2 . Fast Attach 17 | 5 6 6 Attach 1 | . 1 . Detach 3 | . 2 1 Swap 7 | . 7 . Drop 15 | . 11 4 Fire 64 | . 47 17 Melee 13 | . 13 . Ram . | . . . Kick . | . . . Crush . | . . . Escape Stasis . | . . . Rewire . | . . . Trap . | . . . Miscellaneous 13 | . 13 . Route ------- -11/Scrapyard -10/Materials (discovered 4 exits: *Mat x3 / [*Min]) -9/Materials History --------- Turn | Location | Event 4 | -11/Scrapyard | Upgraded with Propulsion slot (x1) 4 | -11/Scrapyard | Upgraded with Utility slot (x1) 4 | -11/Scrapyard | Upgraded with Weapon slot (x1) 6 | -11/Scrapyard | Discovered new exit (range 17) 72 | -11/Scrapyard | Entered Materials 305 | -10/Materials | Build established: Mutant 346 | -10/Materials | Discovered new exit (range 16) 527 | -10/Materials | Discovered new exit (range 16) 661 | -10/Materials | Core integrity fell below 50% 689 | -10/Materials | Reached level 2 852 | -10/Materials | Discovered new exit (range 17) 1092 | -10/Materials | Build established: Scavenger-Mutant 1301 | -10/Materials | Discovered new exit (range 17) 1370 | -10/Materials | Entered another Materials area 1370 | -9/Materials | Upgraded with Propulsion slot (x1) 1371 | -9/Materials | Core integrity fell below 50% 1372 | -9/Materials | Reached level 3 1659 | -9/Materials | Core integrity fell below 20% 1765 | -9/Materials | Reached level 4 1816 | -9/Materials | Build established: Mutant 1832 | -9/Materials | Destroyed self with Light Ion Engine chain reaction Last Messages --------------- S-10 Pest destroyed. W-16 Scout sends out distress signal. Neutrino Reactor explodes. S-10 Pest destroyed. T-07 Excavator destroyed. G-34 Mercenary destroyed. Atomic Centrifuge disabled. U-05 Engineer lays Concrete. Atomic Centrifuge disabled. U-05 Engineer lays Concrete. G-34 Mercenary destroyed. U-05 Engineer lays Concrete. R-06 Scavenger collects Mining Laser. U-05 Engineer lays Concrete. R-06 Scavenger collects Imp. Terrain Scanner. U-05 Engineer lays Concrete. K-01 Serf collects debris. U-05 Engineer lays Concrete. K-01 Serf collects debris. Chain reaction triggered in Lgt. Ion Engine. Map ----- +----------------------------------------------------+ | ### #####+######/#### #???????????????????????? | | ??# ## = # %*=## #???????????????????????? | | ??# ## # ## ??????????????????????? | | ### ## """ # """ #######?????????????????????? | | ##! """ # """ #???????????????????????????? | | ## """ # """ #???????????????????????????? | | """ ## # #???????????????????????????? | | "T" ###########+####???????????????????????????? | | " " #?????????# #??????????????????????????????? | | #?????????# #??????????????????????????????? | | #?????????# #??????????????????????????????? | | ## #?????????# #??????????????????????????????? | | ##+##########??# #??????????????????????????????? | | # %! ! #??# #??????????????????????????????? | | #*[! """ #??# #??????????????????????????????? | | # """ #??# #???????????#??????????????????? | | # """ #??# #????????? ???????????????????? | | # ""T"" #??# #########+###??????????????????? | | # """"" #### ##########?????????? | | ############### ?????????? | | ?????? #[ ????????? | | ?????? %/!% = ????????? | | ?????? =#== % ????????? | | ????? # """ ????????????? | | ????# ?# """ ????????????? | | ????# ??# a @ u """ ????????????? | | ????? !???#k %=% ]???????? | | ????? ????# [ r ???????? | | ????#####?????# ????????? | | ???????????? ????????? | | ??????????? ######### ?????????? | | ??????????? r #???????? ?????????? | | ??????????# """ #????????? #######?????????? | | ??????????? """ #????????? #???????????????? | | ??????????? ?"" ?????????? #???????????????? | | ????????????? ? ?????????? #???????????????? | | ??????????????? ???????????? #???????????????? | | ??????????????????+#?????????????#???????????????? | | ?????????????????????????????????????????????????? | | ?????????????????????????????????????????????????? | | ?????????????????????????????????????????????????? | | ?????????????????????????????????????????????????? | | ?????????????????????????????????????????????????? | | ?????????????????????????????????????????????????? | | ?????????????????????????????????????????????????? | | ?????????????????????????????????????????????????? | | ?????????????????????????????????????????????????? | | ?????????????????????????????????????????????????? | | ?????????????????????????????????????????????????? | | ?????????????????????????????????????????????????? | +----------------------------------------------------+ Best States ------------- Heat Dissipation 35 Energy Generation 12 Energy Capacity 265 Matter Stores 300 Matter Capacity 300 Sight Range 17 Robot Scan Range 4 Terrain Scan Density 110 Thermal Conversion 30 Evasion (%) 40 Targeting Accuracy 6 Item Schematics ----------------- None Robot Schematics ------------------ None Fabricated ------------ Nothing Alien Tech Used ----------------- None Achievements -------------- Power Corrupts Challenges ------------ None RPGLIKE | -11 -10 -9 --------- Run | Scr Mat Mat Levels Raised 3 | . 1 2 XP Earned 8505 | 3000 2255 3250 XP Spent 4500 | 3000 . 1500 Upgrades 14 | 11 . 3 Propulsion Slot 2 | 1 . 1 Utility Slot 1 | 1 . . Weapon Slot 1 | 1 . . Core Integrity 1 | 1 . . Mass Support 2 | 1 . 1 Inventory Capacity 2 | 2 . . Sight Range 1 | 1 . . Sensor Range 2 | 2 . . Ranged Accuracy 2 | 1 . 1 Protomatter Created 274 | . 204 70 Integrity Restored 276 | . 276 . Core 276 | . 276 . Protomatter Decayed 52 | . 52 . Game ------ Seed SiegeScatterCompressor Manual? 0 Play Time 00:28:59 Cumulative 5.3 hours Start 2019.12.31 @ 11:50:45 End 2019.12.31 @ 12:21:27 Sessions 1 Manual Loads 0 Difficulty Rogue Special Mode Winter2019/RPGLIKE Game No. 12 Rogue 12 Adventurer 0 Explorer 0 Win Type - Total 0 Types 0/0/0/0/0/0/0 Lore% 12 Gallery% 8 Achievement% 7 Wizard Run 0 Options --------- ASCII 0 Keyboard 1 Movement Numpad Keybinds 0 Fullscreen 2 Font 18/X11 Map View 76x50 Tactical HUD 0 Map Filters NONE Filters NONE Steam 1 RUN: caf310a3-e20c-4530-8cd9-0a90962bcca2